bitfinex/quotes_BTCUSD_20250105
["timestamp","ask_amount","ask_price","bid_price","bid_amount"]
[1736061605189,0.6964291,98424.0,98423.0,8.54e-05]
[1736061608439,0.6964291,98424.0,98423.0,0.02084493]
[1736061608642,0.6964291,98424.0,98423.0,8.54e-05]
[1736061608853,0.6964291,98424.0,98423.0,0.02084493]
[1736061609058,0.6924291,98424.0,98423.0,8.54e-05]
[1736061609253,0.6924291,98424.0,98423.0,0.02084493]
[1736061609454,0.6144291,98424.0,98423.0,8.54e-05]
[1736061609669,0.6144291,98424.0,98423.0,0.02084493]
[1736061610430,0.34024476,98424.0,98423.0,0.02084493]
[1736061610730,0.33824476,98424.0,98423.0,0.02084493]
[1736061610936,0.33924476,98424.0,98423.0,0.02084493]
[1736061611278,0.34024476,98424.0,98423.0,0.02084493]
[1736061612710,0.33824476,98424.0,98423.0,0.02084493]
[1736061612942,0.33724476,98424.0,98423.0,0.02084493]
[1736061613127,0.33824476,98424.0,98423.0,0.02084493]
[1736061613785,0.33724476,98424.0,98423.0,0.02084493]
[1736061614104,0.33824476,98424.0,98423.0,0.02084493]
[1736061614565,0.33924476,98424.0,98423.0,0.02084493]
[1736061615067,0.33824476,98424.0,98423.0,0.02084493]
[1736061617633,0.6114291,98424.0,98423.0,0.02084493]
[1736061617876,0.6124291,98424.0,98423.0,0.02084493]
[1736061618623,0.33824476,98424.0,98423.0,0.02084493]
[1736061619325,0.33724476,98424.0,98423.0,0.02084493]
[1736061619568,0.33824476,98424.0,98423.0,0.02084493]
[1736061622123,0.33724476,98424.0,98423.0,0.02084493]
[1736061622573,0.33824476,98424.0,98423.0,0.02084493]
[1736061623323,0.33724476,98424.0,98423.0,0.02084493]
[1736061623783,0.33824476,98424.0,98423.0,0.02084493]
[1736061624231,0.33924476,98424.0,98423.0,0.02084493]
[1736061624674,0.35829487,98424.0,98423.0,0.02084493]
[1736061625557,0.35729487,98424.0,98423.0,0.02084493]
[1736061625729,0.35629487,98424.0,98423.0,0.02084493]
[1736061625931,0.33724476,98424.0,98423.0,0.02084493]
[1736061626159,0.33824476,98424.0,98423.0,0.02084493]
[1736061626763,0.33724476,98424.0,98423.0,0.02084493]
[1736061626970,0.33824476,98424.0,98423.0,0.02084493]
[1736061627541,0.33924476,98424.0,98423.0,0.02084493]
[1736061628891,0.33724476,98424.0,98423.0,0.02084493]
[1736061629300,0.33824476,98424.0,98423.0,0.02084493]
[1736061629907,0.33924476,98424.0,98423.0,0.02084493]
[1736061630111,0.33824476,98424.0,98423.0,0.02084493]
[1736061630542,0.33924476,98424.0,98423.0,0.02084493]
[1736061630746,0.33824476,98424.0,98423.0,0.02084493]
[1736061632054,0.33924476,98424.0,98423.0,0.02084493]
[1736061632319,0.33824476,98424.0,98423.0,0.02084493]
[1736061632488,0.33724476,98424.0,98423.0,0.02084493]
[1736061632629,0.33824476,98424.0,98423.0,0.02084493]
[1736061633751,0.33924476,98424.0,98423.0,0.02084493]
[1736061633907,0.34024476,98424.0,98423.0,0.02084493]
[1736061634155,0.33924476,98424.0,98423.0,0.02084493]
[1736061635244,0.33724476,98424.0,98423.0,0.02084493]
[1736061635715,0.33824476,98424.0,98423.0,0.02084493]
[1736061636266,0.33924476,98424.0,98423.0,0.02084493]
[1736061636477,0.33724476,98424.0,98423.0,0.02084493]
[1736061636886,0.33924476,98424.0,98423.0,0.02084493]
[1736061638249,0.6135521,98424.0,98423.0,0.02084493]
[1736061638501,0.6145521,98424.0,98423.0,0.02084493]
[1736061638652,0.6125521,98424.0,98423.0,0.02084493]
[1736061638839,0.6115521,98424.0,98423.0,0.02084493]
[1736061639109,0.6125521,98424.0,98423.0,0.02084493]
[1736061639467,0.33824476,98424.0,98423.0,0.02084493]
[1736061639666,0.34024476,98424.0,98423.0,0.02084493]
[1736061639923,0.33724476,98424.0,98423.0,0.02084493]
[1736061640303,0.33824476,98424.0,98423.0,0.02084493]
[1736061640709,0.33924476,98424.0,98423.0,0.02084493]
[1736061641238,0.33824476,98424.0,98423.0,0.02084493]
[1736061641520,0.33724476,98424.0,98423.0,0.02084493]
[1736061641823,0.61156439,98424.0,98423.0,0.02084493]
[1736061641976,0.61356439,98424.0,98423.0,0.02084493]
[1736061642170,0.61156439,98424.0,98423.0,0.02084493]
[1736061642590,0.61256439,98424.0,98423.0,0.02084493]
[1736061642915,0.61156439,98424.0,98423.0,0.02084493]
[1736061643110,0.61256439,98424.0,98423.0,0.02084493]
[1736061643314,0.34024476,98424.0,98423.0,0.02084493]
[1736061643574,0.33924476,98424.0,98423.0,0.02084493]
[1736061644722,0.33724476,98424.0,98423.0,0.02084493]
[1736061644958,0.33824476,98424.0,98423.0,0.02084493]
[1736061645202,0.33924476,98424.0,98423.0,0.02084493]
[1736061645660,0.34124476,98424.0,98423.0,0.02084493]
[1736061645924,0.34024476,98424.0,98423.0,0.02084493]
[1736061646386,0.34124476,98424.0,98423.0,0.02084493]
[1736061646631,0.61258266,98424.0,98423.0,0.02084493]
[1736061647478,0.61158266,98424.0,98423.0,0.02084493]
[1736061648086,0.61358266,98424.0,98423.0,0.02084493]
[1736061648540,0.61458266,98424.0,98423.0,0.02084493]
[1736061648814,0.61658266,98424.0,98423.0,0.02084493]
[1736061650815,0.34224476,98424.0,98423.0,0.02084493]
[1736061650982,0.33724476,98424.0,98423.0,0.02084493]
[1736061651215,0.33824476,98424.0,98423.0,0.02084493]
[1736061651417,0.34024476,98424.0,98423.0,0.02084493]
[1736061653150,0.61460776,98424.0,98423.0,0.02084493]
[1736061659500,0.34024476,98424.0,98423.0,0.02084493]
[1736061664687,0.33724476,98424.0,98423.0,0.02084493]
[1736061664845,0.33824476,98424.0,98423.0,0.02084493]
[1736061665050,0.34024476,98424.0,98423.0,0.02084493]
[1736061667789,0.33724476,98424.0,98423.0,0.02084493]
[1736061667937,0.33824476,98424.0,98423.0,0.02084493]
[1736061668317,0.34024476,98424.0,98423.0,0.02084493]
[1736061668745,0.33924476,98424.0,98423.0,0.02084493]
[1736061668927,0.33724476,98424.0,98423.0,0.02084493]
[1736061669123,0.34024476,98424.0,98423.0,0.02084493]
[1736061669573,0.33924476,98424.0,98423.0,0.02084493]
[1736061669781,0.34124476,98424.0,98423.0,0.02084493]
[1736061670987,0.34224476,98424.0,98423.0,0.02084493]
[1736061671237,0.33824476,98424.0,98423.0,0.02084493]
[1736061671477,0.34024476,98424.0,98423.0,0.02084493]
[1736061671993,0.34224476,98424.0,98423.0,0.02084493]
[1736061677520,0.34124476,98424.0,98423.0,0.02084493]
[1736061677734,0.33724476,98424.0,98423.0,0.02084493]
[1736061677910,0.33824476,98424.0,98423.0,0.02084493]
[1736061678115,0.34024476,98424.0,98423.0,0.02084493]
[1736061687082,0.61470191,98424.0,98423.0,0.02084493]
[1736061687236,0.61470191,98424.0,98423.0,8.54e-05]
[1736061687842,0.61170191,98424.0,98423.0,8.54e-05]
[1736061688046,0.61470191,98424.0,98423.0,8.54e-05]
[1736061690384,0.61270191,98424.0,98423.0,8.54e-05]
[1736061690584,0.61170191,98424.0,98423.0,8.54e-05]
[1736061690758,0.61270191,98424.0,98423.0,8.54e-05]
[1736061695040,0.33824476,98424.0,98423.0,8.54e-05]
[1736061705317,0.33824476,98424.0,98423.0,0.01872491]
[1736061708744,0.33824476,98424.0,98423.0,8.54e-05]
[1736061712425,0.61270191,98424.0,98423.0,8.54e-05]
[1736061714972,0.33824476,98424.0,98423.0,8.54e-05]
[1736061715856,0.41674476,98424.0,98423.0,8.54e-05]
[1736061716830,0.69120191,98424.0,98423.0,8.54e-05]
[1736061718363,0.41674476,98424.0,98423.0,8.54e-05]
[1736061728342,0.33824476,98424.0,98423.0,8.54e-05]
[1736061759912,0.33824476,98424.0,98423.0,0.01873248]
[1736061763756,0.35847689,98424.0,98423.0,0.01873248]
[1736061767576,0.33824476,98424.0,98423.0,0.01873248]
[1736061806179,0.61260156,98424.0,98423.0,0.01873248]
[1736061810567,0.61260156,98424.0,98423.0,8.54e-05]
[1736061815875,0.33824476,98424.0,98423.0,8.54e-05]
[1736061817309,0.61260156,98424.0,98423.0,8.54e-05]
[1736061818060,0.61260156,98424.0,98423.0,0.01873036]
[1736061818264,0.61260156,98424.0,98423.0,8.54e-05]
[1736061818475,0.61260156,98424.0,98423.0,0.01873036]
[1736061818676,0.61260156,98424.0,98423.0,8.54e-05]
[1736061818885,0.33824476,98424.0,98423.0,0.01873036]
[1736061819091,0.33824476,98424.0,98423.0,8.54e-05]
[1736061819297,0.33824476,98424.0,98423.0,0.01873036]
[1736061819455,0.33824476,98424.0,98423.0,8.54e-05]
[1736061819662,0.33824476,98424.0,98423.0,0.01873036]
[1736061819861,0.33824476,98424.0,98423.0,8.54e-05]
[1736061820105,0.33824476,98424.0,98423.0,0.01873036]
[1736061820288,0.33824476,98424.0,98423.0,8.54e-05]
[1736061820460,0.33824476,98424.0,98423.0,0.01873036]
[1736061820674,0.33824476,98424.0,98423.0,8.54e-05]
[1736061820877,0.33824476,98424.0,98423.0,0.01873036]
[1736061821078,0.33824476,98424.0,98423.0,8.54e-05]
[1736061821277,0.33824476,98424.0,98423.0,0.01873036]
[1736061821482,0.33824476,98424.0,98423.0,8.54e-05]
[1736061821679,0.33824476,98424.0,98423.0,0.01873036]
[1736061821878,0.33824476,98424.0,98423.0,8.54e-05]
[1736061822078,0.33824476,98424.0,98423.0,0.01873036]
[1736061822346,0.33824476,98424.0,98423.0,8.54e-05]
[1736061822471,0.33824476,98424.0,98423.0,0.01873036]
[1736061822673,0.33824476,98424.0,98423.0,8.54e-05]
[1736061822877,0.33824476,98424.0,98423.0,0.01873036]
[1736061823078,0.33824476,98424.0,98423.0,8.54e-05]
[1736061823277,0.33824476,98424.0,98423.0,0.01873036]
[1736061823484,0.33724476,98424.0,98423.0,8.54e-05]
[1736061823686,0.42879409,98427.0,98424.0,0.203202]
[1736061823687,0.18289863,98426.0,98424.0,0.203202]
[1736061824092,0.18289863,98426.0,98425.0,0.01864307]
[1736061824897,0.3374402,98426.0,98425.0,0.01864307]
[1736061827101,0.3374402,98426.0,98425.0,0.01964307]
[1736061827397,0.3374402,98426.0,98425.0,0.02164307]
[1736061827743,0.2001708,98427.0,98425.0,0.02164307]
[1736061828637,0.2001708,98427.0,98425.0,0.01964307]
[1736061829065,0.42879409,98427.0,98425.0,0.01964307]
[1736061829276,0.42879409,98427.0,98425.0,0.01864307]
[1736061830105,0.42879409,98427.0,98425.0,0.01964307]
[1736061830309,0.42879409,98427.0,98425.0,0.01864307]
[1736061830507,0.33737547,98426.0,98425.0,0.01864307]
[1736061830665,0.33737547,98426.0,98425.0,0.02164307]
[1736061831246,0.33737547,98426.0,98425.0,0.01964307]
[1736061831762,0.33737547,98426.0,98425.0,0.02264307]
[1736061832785,0.33737547,98426.0,98425.0,0.02164307]
[1736061832997,0.33737547,98426.0,98425.0,0.02264307]
[1736061835451,0.33737547,98426.0,98425.0,0.12662939]
[1736061835584,0.33737547,98426.0,98425.0,0.20712939]
[1736061836625,0.33724505,98427.0,98426.0,0.203198]
[1736061837165,0.33724505,98427.0,98426.0,0.22183699]
[1736061837737,0.33724505,98427.0,98426.0,0.22283699]
[1736061837937,0.2001708,98427.0,98426.0,0.22283699]
[1736061839288,0.2001708,98427.0,98426.0,0.22383699]
[1736061839577,0.2001708,98427.0,98426.0,0.23527093]
[1736061839803,0.2001708,98427.0,98426.0,0.23427093]
[1736061840000,0.2001708,98427.0,98426.0,0.22383699]
[1736061842417,0.29152996,98427.0,98426.0,0.22383699]
[1736061844267,0.29152996,98427.0,98426.0,0.32782331]
[1736061846062,0.2001708,98427.0,98426.0,0.32782331]
[1736061846243,0.2001708,98427.0,98426.0,0.32582331]
[1736061847075,0.2001708,98427.0,98426.0,0.32682331]
[1736061847290,0.2001708,98427.0,98426.0,0.32582331]
[1736061847709,0.2001708,98427.0,98426.0,0.32682331]
[1736061848939,0.2001708,98427.0,98426.0,0.32582331]
[1736061849147,0.2001708,98427.0,98426.0,0.32882331]
[1736061849522,0.2001708,98427.0,98426.0,0.32682331]
[1736061849726,0.2001708,98427.0,98426.0,0.32982331]
[1736061850003,0.2001708,98427.0,98426.0,0.32882331]
[1736061850425,0.2001708,98427.0,98426.0,0.32982331]
[1736061850635,0.2001708,98427.0,98426.0,0.32990871]
[1736061852544,0.2001708,98427.0,98426.0,0.12671071]
[1736061860196,0.2001708,98427.0,98426.0,0.13696513]
[1736061866748,0.29152996,98427.0,98426.0,0.13696513]
[1736061871755,0.29152996,98427.0,98426.0,0.13798103]
[1736061873392,0.2001708,98427.0,98426.0,0.13696513]
[1736061876344,0.2001708,98427.0,98426.0,0.63696513]
[1736061887610,0.2001708,98427.0,98426.0,0.71376513]
[1736061888489,0.2001708,98427.0,98426.0,0.71276513]
[1736061889114,0.2001708,98427.0,98426.0,0.70976513]
[1736061889243,0.2001708,98427.0,98426.0,0.71576513]
[1736061889244,0.2011708,98427.0,98426.0,0.71576513]
[1736061890350,0.2011708,98427.0,98426.0,0.71876513]
[1736061890975,0.2011708,98427.0,98426.0,0.71576513]
[1736061891366,0.2011708,98427.0,98426.0,0.71876513]
[1736061892077,0.2001708,98427.0,98426.0,0.71276513]
[1736061892485,0.2011708,98427.0,98426.0,0.71976513]
[1736061903074,0.2011708,98427.0,98426.0,0.64296513]
[1736061907906,0.2011708,98427.0,98426.0,0.64972513]
[1736061915976,0.2011708,98427.0,98426.0,0.63947071]
[1736061923629,0.2011708,98427.0,98426.0,0.64948607]
[1736061935475,0.2011708,98427.0,98426.0,0.64272607]
[1736061935683,0.2011708,98427.0,98426.0,0.64948607]
[1736061940454,0.2779708,98427.0,98426.0,0.64272607]
[1736061940667,0.2779708,98427.0,98426.0,0.64948607]
[1736061946178,0.2011708,98427.0,98426.0,0.64948607]
[1736061951328,0.2011708,98427.0,98426.0,0.63947071]
[1736061954035,0.2800708,98427.0,98426.0,0.63271071]
[1736061956396,0.2800708,98427.0,98426.0,0.52872439]
[1736061958988,0.41714505,98427.0,98426.0,0.52872439]
[1736061960219,0.2800708,98427.0,98426.0,0.52872439]
[1736061970617,0.2011708,98427.0,98426.0,0.52872439]
[1736062016995,0.2011708,98427.0,98426.0,0.5100854]
[1736062017151,0.2011708,98427.0,98426.0,0.52892678]
[1736062042424,0.22022776,98427.0,98426.0,0.52892678]
[1736062042649,0.22022776,98427.0,98426.0,0.6329131]
[1736062043702,0.2011708,98427.0,98426.0,0.6329131]
[1736062066175,0.2011708,98427.0,98426.0,0.61407172]
[1736062066381,0.2011708,98427.0,98426.0,0.5100854]
[1736062066580,0.2011708,98427.0,98426.0,0.52892635]
[1736062067605,0.53872796,98427.0,98426.0,0.52892635]
[1736062069063,0.33830552,98427.0,98426.0,0.52892635]
[1736062071825,0.47010552,98427.0,98426.0,0.52892635]
[1736062072925,0.67040564,98427.0,98426.0,0.52892635]
[1736062073705,0.67040564,98427.0,98426.0,0.52592635]
[1736062073926,0.67040564,98427.0,98426.0,0.52692635]
[1736062074520,0.67040564,98427.0,98426.0,0.52592635]
[1736062074735,0.67040564,98427.0,98426.0,0.52692635]
[1736062074929,0.67040564,98427.0,98426.0,0.52992635]
[1736062075149,0.66940564,98427.0,98426.0,0.52292635]
[1736062075329,0.66940564,98427.0,98426.0,0.52392635]
[1736062075741,0.66940564,98427.0,98426.0,0.52092635]
[1736062075943,0.67540564,98427.0,98426.0,0.52192635]
[1736062076861,0.67740564,98427.0,98426.0,0.52192635]
[1736062077317,0.66940564,98427.0,98426.0,0.51892635]
[1736062077488,0.66940564,98427.0,98426.0,0.51992635]
[1736062077737,0.67740564,98427.0,98426.0,0.51992635]
[1736062077856,0.67740564,98427.0,98426.0,0.51892635]
[1736062078059,0.67740564,98427.0,98426.0,0.51992635]
[1736062078324,0.68340564,98427.0,98426.0,0.51992635]
[1736062078887,0.68340564,98427.0,98426.0,0.01992635]
[1736062079532,0.68340564,98427.0,98426.0,0.0010854]
[1736062083331,0.91151758,98427.0,98426.0,0.0010854]
[1736062084623,0.68340564,98427.0,98426.0,0.0010854]
[1736062094714,0.86579355,98427.0,98426.0,0.0010854]
[1736062095759,0.68340564,98427.0,98426.0,0.0010854]
[1736062097420,0.91151758,98427.0,98426.0,0.0010854]
[1736062098642,0.68340564,98427.0,98426.0,0.0010854]
[1736062113297,0.95776244,98427.0,98426.0,0.0010854]
[1736062114485,0.68340564,98427.0,98426.0,0.0010854]
[1736062120345,0.68733786,98427.0,98426.0,0.0010854]
[1736062120708,0.76733786,98427.0,98426.0,0.0010854]
[1736062121659,1.23909527,98427.0,98426.0,0.0010854]
[1736062122085,0.20321,98420.0,98419.0,8.54e-05]
[1736062123309,0.20421,98420.0,98419.0,8.54e-05]
[1736062123511,0.54164484,98420.0,98419.0,8.54e-05]
[1736062124167,0.54464484,98420.0,98419.0,8.54e-05]
[1736062127503,0.55473134,98420.0,98419.0,8.54e-05]
[1736062137685,0.203237,98408.0,98401.0,0.0740209]
[1736062138010,0.203237,98408.0,98402.0,0.01888207]
[1736062139062,0.203246,98403.0,98387.0,0.05742609]
[1736062139468,0.203246,98403.0,98401.0,0.003]
[1736062140462,0.33743484,98402.0,98401.0,0.003]
[1736062141070,0.33743484,98402.0,98393.0,0.077]
[1736062141071,0.203249,98401.0,98393.0,0.077]
[1736062141272,0.203249,98401.0,98400.0,0.0031708]
[1736062141807,0.203249,98401.0,98400.0,0.0001708]
[1736062142549,0.54068384,98401.0,98400.0,0.0001708]
[1736062143927,0.76895662,98401.0,98400.0,0.0001708]
[1736062146126,0.54068384,98401.0,98400.0,0.0001708]
[1736062149723,0.54085484,98401.0,98400.0,0.0001708]
[1736062152550,0.61745484,98401.0,98400.0,0.0001708]
[1736062152918,0.84572762,98401.0,98400.0,0.0001708]
[1736062153527,0.84972762,98401.0,98400.0,0.0001708]
[1736062153931,0.62145484,98401.0,98400.0,0.0001708]
[1736062154180,0.62645484,98401.0,98400.0,0.0001708]
[1736062154346,0.62345484,98401.0,98400.0,0.0001708]
[1736062154769,0.62745484,98401.0,98400.0,0.0001708]
[1736062155202,0.62945484,98401.0,98400.0,0.0001708]
[1736062161472,0.63945307,98401.0,98400.0,0.0001708]
[1736062162719,0.78945307,98401.0,98400.0,0.0001708]
[1736062163470,0.89343939,98401.0,98400.0,0.0001708]
[1736062164004,0.203254,98400.0,98377.0,0.1249]
[1736062164225,0.203256,98398.0,98377.0,0.1249]
[1736062164409,0.30724232,98398.0,98377.0,0.1249]
[1736062165406,0.31029156,98398.0,98377.0,0.1249]
[1736062165866,0.33743484,98397.0,98377.0,0.1249]
[1736062166659,0.48743484,98397.0,98377.0,0.0777]
[1736062167395,0.49043484,98397.0,98377.0,0.0777]
[1736062168041,0.49843484,98397.0,98396.0,0.0011708]
[1736062168452,0.77501434,98397.0,98396.0,0.0011708]
[1736062170638,0.50143484,98397.0,98396.0,0.0011708]
[1736062172425,0.164,98397.0,98396.0,0.0011708]
[1736062188251,0.19570799,98397.0,98396.0,0.0011708]
[1736062191036,0.53253649,98397.0,98396.0,0.0011708]
[1736062191635,0.203297,98378.0,98377.0,0.0777]
[1736062193553,0.203297,98378.0,98377.0,0.0807]
[1736062193766,0.5401255,98378.0,98377.0,0.0807]
[1736062194307,0.5401255,98378.0,98377.0,0.0797]
[1736062194777,0.5401255,98378.0,98377.0,0.0777]
[1736062194973,0.5411255,98378.0,98377.0,0.0777]
[1736062195174,0.7236431,98378.0,98377.0,0.0777]
[1736062197190,0.7236431,98378.0,98377.0,0.0777855]
[1736062199227,0.5411255,98378.0,98377.0,0.0777855]
[1736062202921,0.76927251,98378.0,98377.0,0.0777855]
[1736062205811,0.5411255,98378.0,98377.0,0.0777855]
[1736062207053,0.204297,98378.0,98377.0,0.0777855]
[1736062208100,0.5411255,98378.0,98377.0,0.0777855]
[1736062210496,0.3378285,98378.0,98377.0,0.0777855]
[1736062210702,0.3378285,98378.0,98377.0,0.1250855]
[1736062211358,0.51960354,98378.0,98377.0,0.1250855]
[1736062212521,0.13707895,98378.0,98377.0,0.0473855]
[1736062213365,0.13707895,98378.0,98377.0,0.1289855]
[1736062213580,0.13707895,98379.0,98377.0,0.1289855]
[1736062213974,0.13707895,98379.0,98377.0,0.1299855]
[1736062214181,0.13707895,98379.0,98377.0,0.1309855]
[1736062214382,0.13707895,98379.0,98377.0,0.1289855]
[1736062214787,0.13707895,98380.0,98377.0,0.1299855]
[1736062215224,0.203295,98379.0,98377.0,0.1299855]
[1736062216040,0.13707895,98380.0,98377.0,0.1299855]
[1736062216455,0.13707895,98380.0,98377.0,0.1289855]
[1736062217245,0.09136397,98378.0,98377.0,0.1289855]
[1736062220241,0.09136397,98378.0,98377.0,0.1309855]
[1736062221049,0.09136397,98379.0,98377.0,0.1309855]
[1736062222357,0.29465997,98379.0,98377.0,0.0010855]
[1736062222986,0.29465997,98379.0,98377.0,8.55e-05]
[1736062223389,0.203296,98379.0,98377.0,8.55e-05]
[1736062224250,0.203296,98379.0,98377.0,0.0010855]
[1736062224658,0.3371705,98378.0,98377.0,0.0010855]
[1736062225635,0.3371705,98378.0,98377.0,0.0020855]
[1736062226274,0.3371705,98378.0,98377.0,8.55e-05]
[1736062226522,0.3381705,98378.0,98377.0,8.55e-05]
[1736062226866,0.3371705,98378.0,98377.0,8.55e-05]
[1736062227067,0.3391705,98378.0,98377.0,8.55e-05]
[1736062227270,0.3401705,98378.0,98377.0,8.55e-05]
[1736062227864,0.3381705,98378.0,98377.0,8.55e-05]
[1736062228178,0.3401705,98378.0,98377.0,8.55e-05]
[1736062228587,0.3391705,98378.0,98377.0,8.55e-05]
[1736062228836,0.3401705,98378.0,98377.0,8.55e-05]
[1736062229455,0.3391705,98378.0,98377.0,8.55e-05]
[1736062229779,0.002,98378.0,98377.0,8.55e-05]
[1736062230004,0.203296,98379.0,98377.0,8.55e-05]
[1736062230210,0.001,98378.0,98377.0,8.55e-05]
[1736062230413,0.003,98378.0,98377.0,8.55e-05]
[1736062231156,0.14001131,98378.0,98377.0,8.55e-05]
[1736062231606,0.13901131,98378.0,98377.0,8.55e-05]
[1736062232781,0.14001131,98378.0,98377.0,8.55e-05]
[1736062234192,0.13801131,98378.0,98377.0,8.55e-05]
[1736062234399,0.13801131,98378.0,98377.0,0.01018862]
[1736062234525,0.13901131,98378.0,98377.0,0.01018862]
[1736062234742,0.001,98378.0,98377.0,8.55e-05]
[1736062234988,0.13701131,98380.0,98377.0,8.55e-05]
[1736062235832,0.13701131,98380.0,98377.0,0.10407182]
[1736062236241,0.13701131,98380.0,98378.0,0.01800414]
[1736062236605,0.13701131,98380.0,98377.0,0.10507182]
[1736062236965,0.13701131,98380.0,98378.0,0.01800414]
[1736062237575,0.13701131,98381.0,98377.0,0.10807182]
[1736062238013,0.13701131,98381.0,98377.0,0.10407182]
[1736062238412,0.13701131,98381.0,98378.0,0.003]
[1736062238837,0.13701131,98381.0,98378.0,0.002]
[1736062239787,0.09134304,98379.0,98378.0,0.002]
[1736062239986,0.09134304,98379.0,98378.0,0.003]
[1736062240395,0.09134304,98379.0,98378.0,0.001]
[1736062240773,0.13701131,98381.0,98378.0,0.001]
[1736062241159,0.13701131,98381.0,98378.0,0.002]
[1736062241578,0.13701131,98381.0,98378.0,0.003]
[1736062241995,0.13701131,98381.0,98377.0,0.10407182]
[1736062242870,0.13701131,98381.0,98378.0,0.001]
[1736062244217,0.13701131,98381.0,98378.0,0.002]
[1736062244425,0.13701131,98381.0,98377.0,0.10407182]
[1736062244668,0.13701131,98381.0,98377.0,0.10507182]
[1736062244867,0.13701131,98381.0,98378.0,0.001]
[1736062245454,0.13701131,98380.0,98378.0,0.002]
[1736062245657,0.13701131,98380.0,98378.0,0.001]
[1736062246304,0.13701131,98380.0,98377.0,0.10607182]
[1736062246727,0.13701131,98380.0,98379.0,0.02042797]
[1736062247449,0.13701131,98380.0,98377.0,0.10407182]
[1736062247582,0.13701131,98380.0,98378.0,0.001]
[1736062248195,0.13701131,98380.0,98377.0,0.10407182]
[1736062248426,0.13701131,98380.0,98379.0,0.001]
[1736062248991,0.13701131,98380.0,98378.0,0.001]
[1736062249405,0.13701131,98380.0,98378.0,0.004]
[1736062250596,0.13701131,98379.0,98378.0,0.004]
[1736062250701,0.13701131,98379.0,98378.0,0.001]
[1736062251739,0.13701131,98379.0,98378.0,0.002]
[1736062251942,0.13701131,98379.0,98378.0,0.003]
[1736062252145,0.13701131,98379.0,98378.0,0.005]
[1736062256553,0.13701131,98379.0,98378.0,0.0050854]
[1736062264122,0.13701131,98380.0,98378.0,0.0050854]
[1736062265109,0.13701131,98380.0,98378.0,8.54e-05]
[1736062265334,0.13701131,98380.0,98378.0,0.0020854]
[1736062265537,0.13701131,98380.0,98378.0,0.0030854]
[1736062266604,0.13701131,98379.0,98378.0,0.0030854]
[1736062267576,0.13701131,98379.0,98378.0,8.54e-05]
[1736062268014,0.13701131,98379.0,98378.0,0.0030854]
[1736062273715,0.18267819,98381.0,98378.0,0.0030854]
[1736062274544,0.18267819,98380.0,98378.0,0.0030854]
[1736062274695,0.18267819,98380.0,98378.0,8.54e-05]
[1736062275132,0.18267819,98380.0,98378.0,0.0010854]
[1736062276361,0.18267819,98380.0,98379.0,0.10398632]
[1736062276605,0.18267819,98380.0,98379.0,0.60398632]
[1736062276847,0.18267819,98380.0,98379.0,0.62509565]
[1736062277856,0.18267819,98380.0,98379.0,0.62709565]
[1736062278263,0.18267819,98380.0,98379.0,0.62809565]
[1736062278487,0.13717511,98381.0,98379.0,0.62809565]
[1736062279460,0.09145373,98380.0,98379.0,0.62809565]
[1736062279690,0.09145373,98380.0,98379.0,0.62509565]
[1736062279893,0.09145373,98380.0,98379.0,0.62609565]
[1736062280096,0.09145373,98380.0,98379.0,0.62709565]
[1736062280297,0.09145373,98380.0,98379.0,0.62509565]
[1736062280594,0.09145373,98380.0,98379.0,0.62809565]
[1736062285950,0.09145373,98381.0,98379.0,0.62809565]
[1736062286778,0.09145373,98381.0,98379.0,0.62709565]
[1736062286980,0.09145373,98381.0,98379.0,0.62509565]
[1736062287162,0.09145373,98381.0,98379.0,0.62609565]
[1736062287363,0.09145373,98381.0,98379.0,0.62709565]
[1736062288750,0.09145373,98382.0,98379.0,0.62709565]
[1736062289791,0.09145373,98381.0,98379.0,0.62609565]
[1736062290600,0.09145373,98381.0,98379.0,0.62509565]
[1736062291487,0.09145373,98381.0,98379.0,0.62609565]
[1736062292674,0.09145373,98381.0,98379.0,0.62709565]
[1736062292882,0.09145373,98382.0,98379.0,0.62709565]
[1736062294268,0.09145373,98382.0,98379.0,0.62509565]
[1736062294714,0.203291,98381.0,98379.0,0.62509565]
[1736062294919,0.203291,98381.0,98379.0,0.52110933]
[1736062296322,0.203291,98381.0,98379.0,0.52210933]
[1736062296885,0.33716827,98380.0,98379.0,0.52210933]
[1736062297110,0.33716827,98380.0,98379.0,0.52310933]
[1736062297319,0.33716827,98380.0,98379.0,0.52110933]
[1736062299257,0.33716827,98380.0,98379.0,0.02110933]
[1736062299466,0.33916827,98380.0,98378.0,8.54e-05]
[1736062299672,0.203295,98379.0,98378.0,8.54e-05]
[1736062301098,0.205295,98379.0,98378.0,8.54e-05]
[1736062301652,0.54246327,98379.0,98378.0,8.54e-05]
[1736062304078,0.72524758,98379.0,98378.0,8.54e-05]
[1736062305447,0.54246327,98379.0,98378.0,8.54e-05]
[1736062306285,0.54046327,98379.0,98378.0,8.54e-05]
[1736062306679,0.205295,98379.0,98378.0,8.54e-05]
[1736062307193,0.203295,98379.0,98378.0,8.54e-05]
[1736062307402,0.204295,98379.0,98378.0,8.54e-05]
[1736062308001,0.34138157,98379.0,98378.0,8.54e-05]
[1736062312961,0.204295,98379.0,98378.0,8.54e-05]
[1736062314159,0.203295,98379.0,98378.0,8.54e-05]
[1736062314395,0.34038157,98379.0,98378.0,8.54e-05]
[1736062314618,0.34138157,98379.0,98378.0,8.54e-05]
[1736062315767,0.204295,98379.0,98378.0,8.54e-05]
[1736062316784,0.72341287,98379.0,98378.0,8.54e-05]
[1736062316999,0.52011787,98379.0,98378.0,8.54e-05]
[1736062317246,0.52111787,98379.0,98378.0,8.54e-05]
[1736062318289,0.001,98379.0,98378.0,8.54e-05]
[1736062319534,0.13807282,98379.0,98378.0,8.54e-05]
[1736062322169,0.001,98379.0,98378.0,8.54e-05]
[1736062323369,0.18278431,98382.0,98378.0,8.54e-05]
[1736062324543,0.18278431,98381.0,98378.0,8.54e-05]
[1736062325303,0.13707001,98379.0,98378.0,8.54e-05]
[1736062326561,0.09138373,98379.0,98378.0,8.54e-05]
[1736062326886,0.09138373,98379.0,98378.0,0.0010854]
[1736062327116,0.09138373,98379.0,98378.0,0.0030854]
[1736062327290,0.09138373,98379.0,98378.0,0.0010854]
[1736062327598,0.09138373,98379.0,98378.0,0.0030854]
[1736062328104,0.09138373,98379.0,98378.0,0.0010854]
[1736062328301,0.09138373,98379.0,98378.0,0.0020854]
[1736062328714,0.09138373,98379.0,98378.0,0.0030854]
[1736062329128,0.09138373,98379.0,98378.0,0.0020854]
[1736062329251,0.09138373,98379.0,98378.0,0.0030854]
[1736062330271,0.13707001,98381.0,98378.0,0.0030854]
[1736062331438,0.13707001,98381.0,98378.0,0.0010854]
[1736062331842,0.13707001,98381.0,98379.0,0.01894674]
[1736062336143,0.13707001,98380.0,98379.0,0.01894674]
[1736062337168,0.18278431,98382.0,98379.0,0.01894674]
[1736062337635,0.18278431,98382.0,98379.0,0.01994674]
[1736062338059,0.18278431,98382.0,98379.0,0.02094674]
[1736062338419,0.52001312,98383.0,98379.0,0.01994674]
[1736062339641,0.13708072,98380.0,98379.0,0.01894674]
[1736062341073,0.13708072,98380.0,98379.0,0.01994674]
[1736062342146,0.13708072,98380.0,98379.0,0.02094674]
[1736062347025,0.18278431,98382.0,98379.0,0.02094674]